[Event "Late-Titled-Tuesday-Blitz-June-04-2024"]
[Site "Chess.com"]
[Date "2024.06.04"]
[Round "11"]
[White "Laico"]
[Black "djano"]
[Result "0-1"]
[WhiteElo "2431"]
[BlackElo "2628"]
[TimeControl "180+1"]
[EndTime "16:05:57 PDT"]
[Termination "djano won by resignation"]

1. e4 {[%clk 0:03:00.9]} 1... c5 {[%clk 0:03:00.1]} 2. Nc3 {[%clk 0:03:00.3]}
2... g6 {[%clk 0:03:00.4]} 3. f4 {[%clk 0:03:00.9]} 3... Bg7 {[%clk 0:03:00.5]}
4. Nf3 {[%clk 0:03:01.5]} 4... a6 {[%clk 0:03:00.7]} 5. g3 {[%clk 0:03:01]} 5...
e6 {[%clk 0:02:55]} 6. e5 {[%clk 0:02:59.4]} 6... d5 {[%clk 0:02:54.6]} 7. exd6
{[%clk 0:02:59.3]} 7... Nf6 {[%clk 0:02:55.2]} 8. d4 {[%clk 0:02:55.3]} 8...
Qxd6 {[%clk 0:02:54.4]} 9. Be3 {[%clk 0:02:53.8]} 9... cxd4 {[%clk 0:02:49.8]}
10. Qxd4 {[%clk 0:02:52.6]} 10... Qc7 {[%clk 0:02:44]} 11. O-O-O {[%clk
0:02:32.8]} 11... O-O {[%clk 0:02:40.1]} 12. Qb6 {[%clk 0:02:29.7]} 12... Qxb6
{[%clk 0:02:28.7]} 13. Bxb6 {[%clk 0:02:30.6]} 13... Nbd7 {[%clk 0:02:29.3]} 14.
Bc7 {[%clk 0:02:28.7]} 14... b5 {[%clk 0:02:25.2]} 15. Bg2 {[%clk 0:02:21.1]}
15... Bb7 {[%clk 0:02:25]} 16. a3 {[%clk 0:02:13.1]} 16... Rfc8 {[%clk
0:02:24.8]} 17. Ba5 {[%clk 0:02:07]} 17... Nc5 {[%clk 0:02:11.9]} 18. Rhg1
{[%clk 0:02:03.7]} 18... Ng4 {[%clk 0:02:04.9]} 19. Rde1 {[%clk 0:01:46.3]}
19... Nd7 {[%clk 0:00:56.1]} 20. h3 {[%clk 0:01:34.6]} 20... Ngf6 {[%clk
0:00:55.9]} 21. Ng5 {[%clk 0:01:17.4]} 21... Bxg2 {[%clk 0:00:56.8]} 22. Rxg2
{[%clk 0:01:17.9]} 22... h6 {[%clk 0:00:44.3]} 23. Nf3 {[%clk 0:01:07.6]} 23...
Nc5 {[%clk 0:00:36.7]} 24. Rd2 {[%clk 0:01:00.9]} 24... Nb7 {[%clk 0:00:35.7]}
25. Bb6 {[%clk 0:00:58.4]} 25... Rc6 {[%clk 0:00:34.7]} 26. Bd4 {[%clk
0:00:58.3]} 26... Rac8 {[%clk 0:00:31.6]} 27. Ne5 {[%clk 0:00:56.3]} 27... R6c7
{[%clk 0:00:29.6]} 28. Bb6 {[%clk 0:00:51.5]} 28... Re7 {[%clk 0:00:29.7]} 29.
g4 {[%clk 0:00:40.7]} 29... h5 {[%clk 0:00:28]} 30. Red1 {[%clk 0:00:39.4]}
30... hxg4 {[%clk 0:00:27.1]} 31. hxg4 {[%clk 0:00:40.3]} 31... Ne8 {[%clk
0:00:18.6]} 32. Rd7 {[%clk 0:00:35.3]} 32... Rxd7 {[%clk 0:00:19]} 33. Rxd7
{[%clk 0:00:35.7]} 33... Nbd6 {[%clk 0:00:19.6]} 34. Ba5 {[%clk 0:00:25.1]}
34... g5 {[%clk 0:00:20]} 35. Bb4 {[%clk 0:00:24.3]} 35... gxf4 {[%clk
0:00:16.6]} 36. Nd3 {[%clk 0:00:20.1]} 36... Nc4 {[%clk 0:00:12.9]} 37. Nxf4
{[%clk 0:00:18.2]} 37... Bh6 {[%clk 0:00:13.3]} 38. Ne2 {[%clk 0:00:04.1]} 38...
e5 {[%clk 0:00:13.3]} 39. b3 {[%clk 0:00:02.2]} 39... Nb6 {[%clk 0:00:13]} 40.
Rd6 {[%clk 0:00:01.2]} 40... Nxd6 {[%clk 0:00:12.7]} 41. Bxd6 {[%clk 0:00:01]}
41... exf4 {[%clk 0:00:13.1]} 0-1

[Event "Late-Titled-Tuesday-Blitz-June-04-2024"]
[Site "Chess.com"]
[Date "2024.06.04"]
[Round "11"]
[White "N_I_Chess"]
[Black "Supelyel"]
[Result "0-1"]
[WhiteElo "2297"]
[BlackElo "2423"]
[TimeControl "180+1"]
[EndTime "16:05:57 PDT"]
[Termination "Supelyel won by checkmate"]

1. d4 {[%clk 0:02:51.7]} 1... d6 {[%clk 0:02:58.9]} 2. c4 {[%clk 0:02:51.3]}
2... Nf6 {[%clk 0:02:58.3]} 3. Nc3 {[%clk 0:02:50.3]} 3... Nbd7 {[%clk
0:02:57.4]} 4. Nf3 {[%clk 0:02:39.2]} 4... e5 {[%clk 0:02:56.2]} 5. e3 {[%clk
0:02:39.4]} 5... Be7 {[%clk 0:02:55.8]} 6. Bd3 {[%clk 0:02:37.3]} 6... c6 {[%clk
0:02:54.1]} 7. O-O {[%clk 0:02:36.2]} 7... O-O {[%clk 0:02:54]} 8. b3 {[%clk
0:02:34]} 8... Re8 {[%clk 0:02:53.8]} 9. Bb2 {[%clk 0:02:32.5]} 9... Qc7 {[%clk
0:02:53.8]} 10. Qc2 {[%clk 0:02:32]} 10... Bf8 {[%clk 0:02:53.1]} 11. Rad1
{[%clk 0:02:28]} 11... a5 {[%clk 0:02:44.8]} 12. h3 {[%clk 0:02:27.5]} 12... h6
{[%clk 0:02:15.5]} 13. Rfe1 {[%clk 0:02:15.4]} 13... b6 {[%clk 0:02:14.9]} 14.
e4 {[%clk 0:02:10.6]} 14... Bb7 {[%clk 0:02:11.8]} 15. d5 {[%clk 0:02:06.7]}
15... cxd5 {[%clk 0:02:11.1]} 16. exd5 {[%clk 0:02:03.6]} 16... Rac8 {[%clk
0:02:08.9]} 17. Nh4 {[%clk 0:02:01.4]} 17... Nc5 {[%clk 0:01:58.4]} 18. Bf1
{[%clk 0:01:52.4]} 18... g6 {[%clk 0:01:52.5]} 19. Re3 {[%clk 0:01:38.9]} 19...
Bg7 {[%clk 0:01:47.6]} 20. g4 {[%clk 0:01:30.9]} 20... Qe7 {[%clk 0:01:45]} 21.
Nf3 {[%clk 0:01:25.9]} 21... Qf8 {[%clk 0:00:54.4]} 22. Bg2 {[%clk 0:01:21.4]}
22... Nh7 {[%clk 0:00:54.1]} 23. Nh4 {[%clk 0:01:06.7]} 23... Bf6 {[%clk
0:00:51.7]} 24. Nf3 {[%clk 0:01:06.6]} 24... Rcd8 {[%clk 0:00:46.1]} 25. Rde1
{[%clk 0:01:00.8]} 25... Bc8 {[%clk 0:00:45.7]} 26. Nd2 {[%clk 0:00:55.9]} 26...
Bg5 {[%clk 0:00:42.4]} 27. R3e2 {[%clk 0:00:56]} 27... f5 {[%clk 0:00:40.9]} 28.
gxf5 {[%clk 0:00:51.9]} 28... gxf5 {[%clk 0:00:39.9]} 29. a3 {[%clk 0:00:51.8]}
29... e4 {[%clk 0:00:25.9]} 30. Nb5 {[%clk 0:00:16.7]} 30... Nd3 {[%clk
0:00:23.4]} 31. Rd1 {[%clk 0:00:14.2]} 31... Bd7 {[%clk 0:00:18.8]} 32. Nd4
{[%clk 0:00:12.8]} 32... Qf7 {[%clk 0:00:16.3]} 33. Nf1 {[%clk 0:00:11.8]} 33...
Qh5 {[%clk 0:00:13]} 34. Ng3 {[%clk 0:00:12.1]} 34... Qg6 {[%clk 0:00:12.1]} 35.
Ba1 {[%clk 0:00:08.8]} 35... Bh4 {[%clk 0:00:12.6]} 36. Kh2 {[%clk 0:00:07.8]}
36... Ng5 {[%clk 0:00:11]} 37. Rg1 {[%clk 0:00:06.5]} 37... Nf4 {[%clk
0:00:10.6]} 38. Re3 {[%clk 0:00:05.7]} 38... Nh5 {[%clk 0:00:08.9]} 39. Nxh5
{[%clk 0:00:05.7]} 39... Qxh5 {[%clk 0:00:09.8]} 40. Bh1 {[%clk 0:00:06.3]}
40... f4 {[%clk 0:00:10.1]} 41. Rxe4 {[%clk 0:00:05.5]} 41... Bxf2 {[%clk
0:00:09]} 42. Rf1 {[%clk 0:00:04.4]} 42... Qxh3# {[%clk 0:00:09.3]} 0-1

[Event "Late-Titled-Tuesday-Blitz-June-04-2024"]
[Site "Chess.com"]
[Date "2024.06.04"]
[Round "11"]
[White "RealPerangel"]
[Black "Kacparov"]
[Result "1/2-1/2"]
[WhiteElo "2770"]
[BlackElo "2915"]
[TimeControl "180+1"]
[EndTime "16:05:58 PDT"]
[Termination "Game drawn by repetition"]

1. e4 {[%clk 0:02:58.8]} 1... c5 {[%clk 0:03:00.4]} 2. g3 {[%clk 0:02:58.7]}
2... d5 {[%clk 0:03:00.4]} 3. exd5 {[%clk 0:02:58.6]} 3... Qxd5 {[%clk
0:03:00.9]} 4. Nf3 {[%clk 0:02:59.3]} 4... Nc6 {[%clk 0:03:00.7]} 5. Nc3 {[%clk
0:02:59]} 5... Qd8 {[%clk 0:03:00.7]} 6. Bg2 {[%clk 0:02:57.9]} 6... e5 {[%clk
0:03:00.9]} 7. O-O {[%clk 0:02:58.1]} 7... Bd6 {[%clk 0:03:01.4]} 8. Re1 {[%clk
0:02:57.6]} 8... Nge7 {[%clk 0:03:01.4]} 9. Ne4 {[%clk 0:02:57]} 9... O-O {[%clk
0:03:01.5]} 10. d3 {[%clk 0:02:56.1]} 10... h6 {[%clk 0:02:52.3]} 11. c3 {[%clk
0:02:45]} 11... Rb8 {[%clk 0:02:43.9]} 12. d4 {[%clk 0:02:35.5]} 12... cxd4
{[%clk 0:02:38.8]} 13. Nxd6 {[%clk 0:02:34.7]} 13... Qxd6 {[%clk 0:02:37.9]} 14.
cxd4 {[%clk 0:02:35.6]} 14... Bg4 {[%clk 0:02:31.7]} 15. dxe5 {[%clk 0:02:28.6]}
15... Qxd1 {[%clk 0:02:29.4]} 16. Rxd1 {[%clk 0:02:29.1]} 16... Nxe5 {[%clk
0:02:26.7]} 17. Nxe5 {[%clk 0:02:29.3]} 17... Bxd1 {[%clk 0:02:26.4]} 18. Nd7
{[%clk 0:02:29.7]} 18... Nc6 {[%clk 0:01:33.8]} 19. Nxb8 {[%clk 0:02:23.1]}
19... Rxb8 {[%clk 0:01:32.9]} 20. Be3 {[%clk 0:02:20.7]} 20... Bg4 {[%clk
0:01:20.5]} 21. Rc1 {[%clk 0:02:18.8]} 21... Be6 {[%clk 0:01:17.8]} 22. a3
{[%clk 0:02:18.2]} 22... a6 {[%clk 0:01:13.9]} 23. b4 {[%clk 0:02:13.9]} 23...
Rc8 {[%clk 0:01:13.4]} 24. f4 {[%clk 0:02:10.8]} 24... Kf8 {[%clk 0:01:06.7]}
25. Kf2 {[%clk 0:02:08]} 25... h5 {[%clk 0:01:04.2]} 26. a4 {[%clk 0:02:00.8]}
26... Bd7 {[%clk 0:00:52.6]} 27. Rd1 {[%clk 0:01:38.9]} 27... Be8 {[%clk
0:00:43.1]} 28. Bc5+ {[%clk 0:01:35.4]} 28... Kg8 {[%clk 0:00:43.1]} 29. f5
{[%clk 0:01:28.9]} 29... b5 {[%clk 0:00:40.2]} 30. axb5 {[%clk 0:01:27.4]} 30...
axb5 {[%clk 0:00:40.3]} 31. h3 {[%clk 0:01:17.7]} 31... Ne5 {[%clk 0:00:40.5]}
32. Ke3 {[%clk 0:01:08.8]} 32... f6 {[%clk 0:00:39.5]} 33. Kf4 {[%clk
0:01:08.6]} 33... Bf7 {[%clk 0:00:36.3]} 34. g4 {[%clk 0:01:08.3]} 34... hxg4
{[%clk 0:00:36.2]} 35. hxg4 {[%clk 0:01:09.1]} 35... Bc4 {[%clk 0:00:35.9]} 36.
Be4 {[%clk 0:01:03.4]} 36... Nf7 {[%clk 0:00:34.8]} 37. Rd7 {[%clk 0:01:02]}
37... Re8 {[%clk 0:00:31]} 38. Bc6 {[%clk 0:01:00.4]} 38... Re1 {[%clk
0:00:27.9]} 39. Rb7 {[%clk 0:00:59.9]} 39... Ne5 {[%clk 0:00:23.1]} 40. Bxb5
{[%clk 0:00:59.5]} 40... Bxb5 {[%clk 0:00:19.8]} 41. Rxb5 {[%clk 0:00:59.1]}
41... Rf1+ {[%clk 0:00:19.3]} 42. Kg3 {[%clk 0:00:59.1]} 42... Rc1 {[%clk
0:00:17.1]} 43. Bd4 {[%clk 0:00:57]} 43... Nc6 {[%clk 0:00:13.1]} 44. Rc5 {[%clk
0:00:54.4]} 44... Nxd4 {[%clk 0:00:13.5]} 45. Rxc1 {[%clk 0:00:53.8]} 45... Ne2+
{[%clk 0:00:14]} 46. Kh4 {[%clk 0:00:48.6]} 46... Nxc1 {[%clk 0:00:14.9]} 47. b5
{[%clk 0:00:49.1]} 47... Nd3 {[%clk 0:00:14.3]} 48. b6 {[%clk 0:00:49.6]} 48...
Nc5 {[%clk 0:00:14.7]} 49. g5 {[%clk 0:00:50.2]} 49... fxg5+ {[%clk 0:00:14.8]}
50. Kxg5 {[%clk 0:00:50.6]} 50... Kf7 {[%clk 0:00:15.5]} 51. Kg4 {[%clk
0:00:50.8]} 51... Kf6 {[%clk 0:00:15.5]} 52. Kf4 {[%clk 0:00:51.4]} 52... Nb7
{[%clk 0:00:14]} 53. Kg4 {[%clk 0:00:51.7]} 53... Nd6 {[%clk 0:00:13.1]} 54. Kf4
{[%clk 0:00:52]} 54... Ke7 {[%clk 0:00:08.9]} 55. Kg5 {[%clk 0:00:48.4]} 55...
Kf7 {[%clk 0:00:07]} 56. Kg4 {[%clk 0:00:46.9]} 56... Kf6 {[%clk 0:00:06.4]} 57.
Kf4 {[%clk 0:00:47.1]} 57... Nb7 {[%clk 0:00:06.4]} 58. Kg4 {[%clk 0:00:47.5]}
58... Nc5 {[%clk 0:00:05.1]} 59. Kf4 {[%clk 0:00:47.5]} 59... Nb7 {[%clk
0:00:04.8]} 1/2-1/2

[Event "Late-Titled-Tuesday-Blitz-June-04-2024"]
[Site "Chess.com"]
[Date "2024.06.04"]
[Round "11"]
[White "SahaNeelash"]
[Black "AlexeiShirov"]
[Result "0-1"]
[WhiteElo "2690"]
[BlackElo "2898"]
[TimeControl "180+1"]
[EndTime "16:05:58 PDT"]
[Termination "AlexeiShirov won by checkmate"]

1. d4 {[%clk 0:02:52.9]} 1... d5 {[%clk 0:02:59.5]} 2. c4 {[%clk 0:02:52.7]}
2... e6 {[%clk 0:02:59.6]} 3. Nf3 {[%clk 0:02:53.1]} 3... Nf6 {[%clk 0:02:59.5]}
4. Nc3 {[%clk 0:02:52.6]} 4... c6 {[%clk 0:02:58.8]} 5. e3 {[%clk 0:02:50.6]}
5... Nbd7 {[%clk 0:02:58.2]} 6. Be2 {[%clk 0:02:50.9]} 6... Bd6 {[%clk
0:02:55.6]} 7. O-O {[%clk 0:02:47.3]} 7... O-O {[%clk 0:02:55.4]} 8. b3 {[%clk
0:02:47.8]} 8... b6 {[%clk 0:02:52.1]} 9. Bb2 {[%clk 0:02:48]} 9... Bb7 {[%clk
0:02:52]} 10. Rc1 {[%clk 0:02:48]} 10... Rc8 {[%clk 0:02:49.8]} 11. Re1 {[%clk
0:02:47.7]} 11... Qe7 {[%clk 0:02:45.3]} 12. Bd3 {[%clk 0:02:43.3]} 12... Ba3
{[%clk 0:02:35.9]} 13. Qc2 {[%clk 0:02:43.1]} 13... Bxb2 {[%clk 0:02:34.1]} 14.
Qxb2 {[%clk 0:02:44]} 14... Rfd8 {[%clk 0:02:33.1]} 15. e4 {[%clk 0:02:36.6]}
15... dxe4 {[%clk 0:02:32.1]} 16. Nxe4 {[%clk 0:02:37.5]} 16... c5 {[%clk
0:02:28.3]} 17. d5 {[%clk 0:02:34.3]} 17... exd5 {[%clk 0:02:25.9]} 18. Neg5
{[%clk 0:02:02.2]} 18... Qd6 {[%clk 0:02:18.9]} 19. Qc2 {[%clk 0:01:34.5]} 19...
h6 {[%clk 0:02:10.4]} 20. Bh7+ {[%clk 0:01:27.9]} 20... Kf8 {[%clk 0:02:10.4]}
21. Nxf7 {[%clk 0:01:28.2]} 21... Kxf7 {[%clk 0:02:08.9]} 22. Qg6+ {[%clk
0:01:28.7]} 22... Kf8 {[%clk 0:02:08.1]} 23. Nh4 {[%clk 0:01:20.6]} 23... Ne5
{[%clk 0:01:53.4]} 24. Qf5 {[%clk 0:01:20.7]} 24... Nc6 {[%clk 0:00:38.7]} 25.
Re6 {[%clk 0:01:06]} 25... Nd4 {[%clk 0:00:33.4]} 26. Ng6+ {[%clk 0:00:56.6]}
26... Kf7 {[%clk 0:00:31.9]} 27. Ne5+ {[%clk 0:00:57.3]} 27... Kf8 {[%clk
0:00:21.1]} 28. Ng6+ {[%clk 0:00:27.9]} 28... Kf7 {[%clk 0:00:20.9]} 29. Ne5+
{[%clk 0:00:28.8]} 29... Qxe5 {[%clk 0:00:21.3]} 30. Bg6+ {[%clk 0:00:28.2]}
30... Kg8 {[%clk 0:00:21.7]} 31. Qxe5 {[%clk 0:00:27.6]} 31... Nxe6 {[%clk
0:00:20.5]} 32. Qxe6+ {[%clk 0:00:28.3]} 32... Kh8 {[%clk 0:00:20.9]} 33. g4
{[%clk 0:00:21.6]} 33... dxc4 {[%clk 0:00:20.1]} 34. g5 {[%clk 0:00:20.5]} 34...
Rc6 {[%clk 0:00:16.9]} 35. Qf5 {[%clk 0:00:20.2]} 35... Rd5 {[%clk 0:00:16]} 36.
Qc2 {[%clk 0:00:11.8]} 36... Rxg5+ {[%clk 0:00:15.7]} 37. Kf1 {[%clk 0:00:12.6]}
37... Re6 {[%clk 0:00:16]} 38. f4 {[%clk 0:00:10.9]} 38... Rg2 {[%clk
0:00:15.5]} 39. Qxc4 {[%clk 0:00:11]} 39... Bd5 {[%clk 0:00:12.5]} 40. Qd3
{[%clk 0:00:10.7]} 40... Ng4 {[%clk 0:00:11.7]} 41. f5 {[%clk 0:00:04.1]} 41...
Nxh2# {[%clk 0:00:11.3]} 0-1

[Event "Late-Titled-Tuesday-Blitz-June-04-2024"]
[Site "Chess.com"]
[Date "2024.06.04"]
[Round "11"]
[White "TERMINATOR_PC"]
[Black "Squirlolz"]
[Result "1/2-1/2"]
[WhiteElo "2588"]
[BlackElo "2511"]
[TimeControl "180+1"]
[EndTime "16:05:59 PDT"]
[Termination "Game drawn by repetition"]

1. c4 {[%clk 0:03:00.9]} 1... b6 {[%clk 0:02:59.2]} 2. Nc3 {[%clk 0:02:57.3]}
2... Bb7 {[%clk 0:03:00.1]} 3. e4 {[%clk 0:02:54.9]} 3... e6 {[%clk 0:02:59.7]}
4. g3 {[%clk 0:02:54.1]} 4... Bb4 {[%clk 0:02:59.6]} 5. Bg2 {[%clk 0:02:53.6]}
5... f5 {[%clk 0:02:59.2]} 6. d3 {[%clk 0:02:48.8]} 6... fxe4 {[%clk 0:02:59.4]}
7. Bxe4 {[%clk 0:02:22.1]} 7... Bxe4 {[%clk 0:02:57.7]} 8. dxe4 {[%clk 0:02:23]}
8... Bxc3+ {[%clk 0:02:55.3]} 9. bxc3 {[%clk 0:02:22.7]} 9... Qf6 {[%clk
0:02:54.5]} 10. Bd2 {[%clk 0:02:13.2]} 10... Nc6 {[%clk 0:02:52.3]} 11. f4
{[%clk 0:02:10.7]} 11... Nge7 {[%clk 0:02:50.4]} 12. Nf3 {[%clk 0:02:09]} 12...
O-O {[%clk 0:02:48]} 13. O-O {[%clk 0:02:09.1]} 13... Rad8 {[%clk 0:02:46.1]}
14. Qe2 {[%clk 0:01:58.8]} 14... Qg6 {[%clk 0:02:40.2]} 15. Kh1 {[%clk
0:01:50.9]} 15... Qh5 {[%clk 0:02:39.4]} 16. Qg2 {[%clk 0:01:46.7]} 16... Na5
{[%clk 0:02:38.6]} 17. g4 {[%clk 0:01:29.6]} 17... Qc5 {[%clk 0:02:38.1]} 18. f5
{[%clk 0:01:30.2]} 18... Nxc4 {[%clk 0:02:37.1]} 19. Bf4 {[%clk 0:01:28]} 19...
Ne3 {[%clk 0:02:33]} 20. Bxe3 {[%clk 0:01:28.4]} 20... Qxe3 {[%clk 0:02:33.9]}
21. Rae1 {[%clk 0:01:28.9]} 21... Qxc3 {[%clk 0:02:30.6]} 22. Ng5 {[%clk
0:01:07.7]} 22... Qf6 {[%clk 0:02:18.3]} 23. h4 {[%clk 0:01:02]} 23... exf5
{[%clk 0:02:10.5]} 24. exf5 {[%clk 0:00:56.6]} 24... Rde8 {[%clk 0:02:10.4]} 25.
Re4 {[%clk 0:00:40.7]} 25... h6 {[%clk 0:01:23.8]} 26. Nf3 {[%clk 0:00:40.3]}
26... Nd5 {[%clk 0:01:23.9]} 27. Rfe1 {[%clk 0:00:29.7]} 27... Rxe4 {[%clk
0:01:16.3]} 28. Rxe4 {[%clk 0:00:30.6]} 28... Qc6 {[%clk 0:01:16.9]} 29. Ne5
{[%clk 0:00:25.5]} 29... Qc1+ {[%clk 0:01:14.2]} 30. Kh2 {[%clk 0:00:26.1]}
30... c6 {[%clk 0:01:10.9]} 31. Ng6 {[%clk 0:00:20.7]} 31... Rd8 {[%clk
0:00:55.2]} 32. Qe2 {[%clk 0:00:20.9]} 32... Kh7 {[%clk 0:00:48.4]} 33. Re8
{[%clk 0:00:13.7]} 33... Rxe8 {[%clk 0:00:48.8]} 34. Qxe8 {[%clk 0:00:14.6]}
34... Qd2+ {[%clk 0:00:48.9]} 35. Kh1 {[%clk 0:00:13.1]} 35... Qd1+ {[%clk
0:00:33.9]} 36. Kh2 {[%clk 0:00:13.3]} 36... Qc2+ {[%clk 0:00:25.1]} 37. Kh1
{[%clk 0:00:13.3]} 37... Qb1+ {[%clk 0:00:25.5]} 38. Kh2 {[%clk 0:00:13.1]}
38... Qxa2+ {[%clk 0:00:25.9]} 39. Kh1 {[%clk 0:00:13.7]} 39... Qa1+ {[%clk
0:00:20]} 40. Kh2 {[%clk 0:00:14.1]} 40... Qb2+ {[%clk 0:00:20.2]} 41. Kh1
{[%clk 0:00:13.8]} 41... Qb1+ {[%clk 0:00:20.4]} 42. Kh2 {[%clk 0:00:12.9]}
42... Qc2+ {[%clk 0:00:19.5]} 43. Kh1 {[%clk 0:00:13.4]} 43... Qb1+ {[%clk
0:00:04.8]} 44. Kh2 {[%clk 0:00:13.6]} 44... Qa2+ {[%clk 0:00:05.7]} 45. Kh1
{[%clk 0:00:14]} 45... Qb1+ {[%clk 0:00:04.3]} 1/2-1/2

[Event "Late-Titled-Tuesday-Blitz-June-04-2024"]
[Site "Chess.com"]
[Date "2024.06.04"]
[Round "11"]
[White "mostafa_sakha"]
[Black "Oleg_Papayan"]
[Result "1-0"]
[WhiteElo "2416"]
[BlackElo "2544"]
[TimeControl "180+1"]
[EndTime "16:06:03 PDT"]
[Termination "mostafa_sakha won on time"]

1. d4 {[%clk 0:03:00]} 1... d5 {[%clk 0:03:00.3]} 2. c4 {[%clk 0:02:59.9]} 2...
dxc4 {[%clk 0:03:01.2]} 3. e3 {[%clk 0:02:59.9]} 3... e5 {[%clk 0:02:59.9]} 4.
Bxc4 {[%clk 0:03:00.1]} 4... exd4 {[%clk 0:03:00.5]} 5. Qb3 {[%clk 0:03:00]}
5... Qd7 {[%clk 0:02:51.6]} 6. Nf3 {[%clk 0:02:59.3]} 6... Nc6 {[%clk
0:02:50.3]} 7. O-O {[%clk 0:02:58.4]} 7... Na5 {[%clk 0:02:45.1]} 8. Qc2 {[%clk
0:02:57.3]} 8... Nxc4 {[%clk 0:02:44.3]} 9. Qxc4 {[%clk 0:02:58.2]} 9... Nf6
{[%clk 0:02:39.2]} 10. exd4 {[%clk 0:02:51.9]} 10... Be7 {[%clk 0:02:39.3]} 11.
Ne5 {[%clk 0:02:47.5]} 11... Qd5 {[%clk 0:02:36.4]} 12. Qxc7 {[%clk 0:02:45.7]}
12... Qxd4 {[%clk 0:02:36.9]} 13. Nc3 {[%clk 0:02:34.9]} 13... Qd8 {[%clk
0:01:58.4]} 14. Nb5 {[%clk 0:01:46]} 14... O-O {[%clk 0:01:56.1]} 15. Be3 {[%clk
0:01:41.3]} 15... Nd5 {[%clk 0:01:25.6]} 16. Qxd8 {[%clk 0:01:36.6]} 16... Rxd8
{[%clk 0:01:21.4]} 17. Bxa7 {[%clk 0:01:26.9]} 17... f6 {[%clk 0:00:47.5]} 18.
Nc4 {[%clk 0:00:56.4]} 18... Bd7 {[%clk 0:00:47.8]} 19. a4 {[%clk 0:00:56.1]}
19... Bc6 {[%clk 0:00:33.1]} 20. Rfe1 {[%clk 0:00:50.6]} 20... Bb4 {[%clk
0:00:31.7]} 21. Red1 {[%clk 0:00:36.9]} 21... Nf4 {[%clk 0:00:21.6]} 22. Ne3
{[%clk 0:00:26.7]} 22... Rxd1+ {[%clk 0:00:17.1]} 23. Nxd1 {[%clk 0:00:21.4]}
23... Bxb5 {[%clk 0:00:13.4]} 24. axb5 {[%clk 0:00:20.8]} 24... Bc5 {[%clk
0:00:14]} 25. Ra4 {[%clk 0:00:14.9]} 25... Rxa7 {[%clk 0:00:08.7]} 26. Rxf4
{[%clk 0:00:14.2]} 26... Ra1 {[%clk 0:00:09.4]} 27. g4 {[%clk 0:00:09.8]} 27...
Rxd1+ {[%clk 0:00:09.8]} 28. Kg2 {[%clk 0:00:10.4]} 28... b6 {[%clk 0:00:09.5]}
29. b4 {[%clk 0:00:09]} 29... Bd6 {[%clk 0:00:08.4]} 30. Rc4 {[%clk 0:00:09.4]}
30... Be5 {[%clk 0:00:05]} 31. Rc6 {[%clk 0:00:08.5]} 31... Bd4 {[%clk
0:00:04.7]} 32. Rd6 {[%clk 0:00:05.2]} 32... Rd2 {[%clk 0:00:04.9]} 33. Kf3
{[%clk 0:00:03]} 33... Rxf2+ {[%clk 0:00:03.6]} 34. Ke4 {[%clk 0:00:03.2]} 34...
Rxh2 {[%clk 0:00:01]} 35. Rxd4 {[%clk 0:00:03.1]} 35... Rg2 {[%clk 0:00:01]} 36.
Kd5 {[%clk 0:00:03.5]} 1-0

[Event "Late-Titled-Tuesday-Blitz-June-04-2024"]
[Site "Chess.com"]
[Date "2024.06.04"]
[Round "11"]
[White "Shankland"]
[Black "jcibarra"]
[Result "0-1"]
[WhiteElo "2967"]
[BlackElo "2927"]
[TimeControl "180+1"]
[EndTime "16:06:04 PDT"]
[Termination "jcibarra won by resignation"]

1. e4 {[%clk 0:03:00.9]} 1... c5 {[%clk 0:02:59.3]} 2. Nf3 {[%clk 0:02:59.3]}
2... Nc6 {[%clk 0:02:59.3]} 3. d4 {[%clk 0:02:58.5]} 3... cxd4 {[%clk
0:02:59.4]} 4. Nxd4 {[%clk 0:02:59.4]} 4... e6 {[%clk 0:03:00]} 5. Nc3 {[%clk
0:02:59.2]} 5... Bc5 {[%clk 0:03:00.5]} 6. Nxc6 {[%clk 0:02:46]} 6... bxc6
{[%clk 0:03:00]} 7. Bd3 {[%clk 0:02:46.5]} 7... d5 {[%clk 0:02:56.3]} 8. O-O
{[%clk 0:02:46.5]} 8... Ne7 {[%clk 0:02:55.8]} 9. Qh5 {[%clk 0:02:42.3]} 9...
Ng6 {[%clk 0:02:45.2]} 10. Bd2 {[%clk 0:02:36.5]} 10... O-O {[%clk 0:02:43]} 11.
Rae1 {[%clk 0:02:35.1]} 11... Rb8 {[%clk 0:02:33.8]} 12. b3 {[%clk 0:02:32.2]}
12... Bb4 {[%clk 0:02:33.9]} 13. e5 {[%clk 0:02:21.9]} 13... Qa5 {[%clk
0:02:17.3]} 14. Re3 {[%clk 0:02:15.9]} 14... f5 {[%clk 0:01:05.1]} 15. exf6
{[%clk 0:01:50.2]} 15... d4 {[%clk 0:01:05.2]} 16. f7+ {[%clk 0:01:26.3]} 16...
Rxf7 {[%clk 0:00:58.4]} 17. Bxg6 {[%clk 0:01:26.2]} 17... hxg6 {[%clk 0:00:51]}
18. Qxa5 {[%clk 0:01:03.4]} 18... Bxa5 {[%clk 0:00:50.8]} 19. Ne4 {[%clk
0:01:03.9]} 19... Bxd2 {[%clk 0:00:47.5]} 20. Rd3 {[%clk 0:01:04.2]} 20... Bc3
{[%clk 0:00:38.9]} 21. Nxc3 {[%clk 0:01:04.2]} 21... dxc3 {[%clk 0:00:39.1]} 22.
Rxc3 {[%clk 0:01:04.8]} 22... Bd7 {[%clk 0:00:37.7]} 23. Rd1 {[%clk 0:01:04.4]}
23... Rb5 {[%clk 0:00:36.8]} 24. Rcd3 {[%clk 0:00:50.1]} 24... Rd5 {[%clk
0:00:37.2]} 25. c4 {[%clk 0:00:50.5]} 25... Rxd3 {[%clk 0:00:37.1]} 26. Rxd3
{[%clk 0:00:51.4]} 26... Kf8 {[%clk 0:00:36.7]} 27. f3 {[%clk 0:00:49.9]} 27...
Ke7 {[%clk 0:00:36.9]} 28. Kf2 {[%clk 0:00:49.4]} 28... c5 {[%clk 0:00:34.6]}
29. Re3 {[%clk 0:00:43.8]} 29... Bc6 {[%clk 0:00:34.5]} 30. Re5 {[%clk
0:00:43.5]} 30... Rf5 {[%clk 0:00:34.6]} 31. Re3 {[%clk 0:00:43]} 31... Kd6
{[%clk 0:00:34.8]} 32. Rd3+ {[%clk 0:00:41.4]} 32... Ke7 {[%clk 0:00:35.1]} 33.
Re3 {[%clk 0:00:41.5]} 33... g5 {[%clk 0:00:35.2]} 34. g4 {[%clk 0:00:40.2]}
34... Rf4 {[%clk 0:00:33.8]} 35. Kg3 {[%clk 0:00:39.6]} 35... Kf6 {[%clk
0:00:30.4]} 36. Rd3 {[%clk 0:00:38.9]} 36... Rd4 {[%clk 0:00:30.5]} 37. Re3
{[%clk 0:00:39.1]} 37... Rd2 {[%clk 0:00:28.9]} 38. a3 {[%clk 0:00:37.2]} 38...
a5 {[%clk 0:00:29]} 39. h4 {[%clk 0:00:36.1]} 39... gxh4+ {[%clk 0:00:28.1]} 40.
Kxh4 {[%clk 0:00:36.8]} 40... g5+ {[%clk 0:00:28.5]} 41. Kg3 {[%clk 0:00:36.8]}
41... e5 {[%clk 0:00:29.1]} 42. a4 {[%clk 0:00:34.9]} 42... e4 {[%clk 0:00:22]}
43. fxe4 {[%clk 0:00:34.9]} 43... Ke5 {[%clk 0:00:22.2]} 44. Rf3 {[%clk
0:00:35.1]} 44... Bxe4 {[%clk 0:00:22.5]} 45. Rf8 {[%clk 0:00:35]} 45... Rd3+
{[%clk 0:00:23.2]} 46. Kf2 {[%clk 0:00:33.6]} 46... Rxb3 {[%clk 0:00:23]} 47.
Rc8 {[%clk 0:00:28]} 47... Kd4 {[%clk 0:00:22.4]} 48. Rg8 {[%clk 0:00:28.2]}
48... Rf3+ {[%clk 0:00:21]} 49. Ke2 {[%clk 0:00:27.8]} 49... Ra3 {[%clk
0:00:17.6]} 50. Rxg5 {[%clk 0:00:25.8]} 50... Ra2+ {[%clk 0:00:18.1]} 51. Kf1
{[%clk 0:00:26]} 51... Rxa4 {[%clk 0:00:14.6]} 52. Rg8 {[%clk 0:00:24.1]} 52...
Ke3 {[%clk 0:00:13.7]} 53. Kg1 {[%clk 0:00:23.7]} 53... Ra1+ {[%clk 0:00:11.3]}
54. Kh2 {[%clk 0:00:24]} 54... Kf2 {[%clk 0:00:11.5]} 0-1